Workbook

Sheet Etapa 2 sector 1_ Rubrado
B1: Programa de Mejoramiento de Barrios - Prestamo BID Nº3097/OC-UR
B2: PRESUPUESTO POR RUBROS ASENTAMIENTO "COTRAVI"
B3: ETAPA 2- SECTOR 1
B5: Financiación PMB/MVOT
B6: INVERSIÓN DIRECTA
B7: Item | C7: Rubro | D7: UNIDAD | E7: METRAJE TOTAL | F7: UNITARIO | G7: SUBTOTAL | H7: UNIT. LLSS | I7: SUBT. LLSS
B8: 1 | C8: IMPLANTACION GENERAL DE OBRA
B9: 1.001 | C9: Movilización e implantación | D9: global | E9: 1 | G9: =+F9*E9 -> 0 | I9: =+H9*E9 -> 0
I10: =+H10*E10 -> 0
C11: SUBTOTAL | G11: =SUM(G9:G10) -> 0 | I11: =+I9+I10 -> 0
B12: Item | C12: Rubro | D12: UNIDAD | E12: METRAJE TOTAL | F12: UNITARIO | G12: SUBTOTAL | H12: UNIT. LLSS | I12: SUBT. LLSS
B13: 2 | C13: RED VIAL
C14: RUBROS GLOBALES
B15: =+B13+0.001 -> 2.001 | C15: Movilización | D15: gl | E15: 1 | G15: =+E15*F15 -> 0 | I15: =+H15*E15 -> 0
B16: =B15+0.001 -> 2.002 | C16: Recuperación Ambiental | D16: gl | E16: 1 | G16: =+E16*F16 -> 0 | I16: =+H16*E16 -> 0
B17: 2.003 | C17: Señalización de Obra | D17: gl | E17: 1 | G17: 0 | I17: =+H17*E17 -> 0
B18: 2.004 | C18: Desvíos de Tránsito | D18: gl | E18: 1 | G18: 0 | I18: 0
B19: 2.005 | C19: Ayuda para adecuación de servicios públicos | D19: gl | E19: 1 | G19: 0 | I19: 0
C20: MOVIMIENTO DE SUELOS
B21: =+B19+0.001 -> 2.006 | C21: Excavación No Clasificada | D21: m³ | E21: 2788.852898 | G21: 0 | I21: 0
B22: =B21+0.001 -> 2.007 | C22: Excavación No Clasificada A Depósito | D22: m³ | E22: 13715.67126 | G22: 0 | I22: 0
B23: 2.008 | C23: Excavación No Clasificada De Préstamo | D23: m³ | E23: 3273.980076 | G23: 0 | I23: 0
B24: 2.009 | C24: Sobretransporte de Suelos (Distancia Libre = 400 metros ) | D24: m³.Km | E24: 38285.0036 | G24: 0 | I24: 0
C25: PAVIMENTOS
B26: 2.01 | C26: Cemento Portland para Base Estabilizada con Cemento (Con Transporte) | D26: Ton | E26: 46.89941253 | G26: 0 | I26: 0
B27: =B26+0.001 -> 2.011 | C27: Base Granular con CBR > 60 % (Con Transporte) | D27: m³ | E27: 3040.620686 | G27: 0 | I27: 0
B28: 2.012 | C28: Base Granular Con CBR > 80 % (Con Transporte) | D28: m³ | E28: 2831.536126 | G28: 0 | I28: 0
B29: 2.013 | C29: Material de Base Estabilizado con Cemento Portland con Transporte | D29: m³ | E29: 468.9941253 | G29: 0 | I29: 0
B30: 2.014 | C30: Cordón Cuneta de Hormigón Simple | D30: M | E30: 1425.370757 | G30: 0 | I30: 0
B31: 2.015 | C31: Demolición y Retiro de Pavimentos | D31: M2 | E31: 295.2472474 | G31: 0 | I31: 0
B32: 2.016 | C32: Hormigón para veredas | D32: m³ | E32: 307.6797453 | G32: =+E32*F32 -> 0 | I32: =+H32*E32 -> 0
C33: SUBTOTAL | G33: =SUM(G14:G32) -> 0 | I33: =SUM(I14:I32) -> 0
B34: Item | C34: Rubro | D34: UNIDAD | F34: UNITARIO | G34: SUBTOTAL | H34: UNIT. LLSS | I34: SUBT. LLSS
B35: 3 | C35: RED DE DESAGÜES PLUVIALES
C36: SUMINISTRO E INSTALACIÓN DE TUBERIA (INCLUYE TAPADO Y APISONADO)
B37: =+B35+0.001 -> 3.001 | C37: Suminstro e instalación de tubería d = 400 mm ( entre 0 y 2 m ) PVC | D37: m | E37: 136.2 | G37: =+F37*E37 -> 0 | I37: =+H37*E37 -> 0
B38: =B37+0.001 -> 3.002 | C38: Suminstro e instalación de tubería d = 600 mm ( entre 0 y 2 m ) | D38: m | E38: 107.2 | G38: =+F38*E38 -> 0 | I38: =+H38*E38 -> 0
B39: =B38+0.001 -> 3.003 | C39: Protección de tuberías (con losa de hormigón) d=600 mm | D39: m | E39: 10 | G39: 0 | I39: 0
C40: REGISTROS Y POZOS DE VISITA
B41: =+B39+0.001 -> 3.004 | C41: Construcción de registros entre 0 y 2 m para diámetro < 800 mm | D41: un | E41: 6 | G41: 0 | I41: 0
C42: ESTRUCTURAS DE CAPTACIÓN Y DESCARGA
B43: =+B41+0.001 -> 3.005 | C43: Boca de tormenta tipo 1 (incluye conexión) | D43: un | E43: 3 | G43: 0 | I43: 0
B44: =B43+0.001 -> 3.006 | C44: Boca de tormenta tipo 2 (incluye conexión) | D44: un | E44: 3 | G44: 0 | I44: 0
B45: =B44+0.001 -> 3.007 | C45: Construcción de toma de cuneta (incluye conexión) | D45: un | E45: 9 | G45: 0 | I45: 0
B46: =B45+0.001 -> 3.008 | C46: Cabezal de descarga tipo (para Ø400 mm) | D46: un | E46: 1 | G46: 0 | I46: 0
B47: =B46+0.001 -> 3.009 | C47: Cabezal de descarga tipo (para Ø600 mm) | D47: un | E47: 1 | G47: 0 | I47: 0
C48: ENTRADAS VEHICULARES
B49: =+B47+0.001 -> 3.01 | C49: Entradas vehiculares en cunetas tipo A | D49: un | E49: 114 | G49: 0 | I49: 0
B50: =+B49+0.001 -> 3.011 | C50: Entradas vehiculares en cunetas tipo B | D50: un | E50: 25 | G50: 0 | I50: 0
B51: =B50+0.001 -> 3.012 | C51: Entradas peatonales | D51: un | E51: 1 | G51: 0 | I51: 0
C53: SOLUCIONES PARTICULARES PREDIOS BAJOS
B54: =B51+0.001 -> 3.013 | C54: Bocas de desagüe y cámaras de inspección | D54: gl | E54: 1 | G54: 0 | I54: 0
B55: =B54+0.001 -> 3.014 | C55: Tubería PVC 160mm | D55: m | E55: 18 | G55: 0 | I55: 0
B56: 3.015 | C56: Media caña PVC 200 mm | D56: m | E56: 147 | G56: 0 | I56: 0
B57: 3.016 | C57: Cabezal de descarga en cuneta | D57: gl | E57: 10 | G57: 0 | I57: 0
B58: 3.017 | C58: Tubería PVC 200 mm | D58: m | E58: 40 | G58: 0 | I58: 0
B59: 3.018 | C59: Canal de bloque armado (ancho 0.35 m) | D59: m | E59: 98 | G59: 0 | I59: 0
C60: ALCANTARILLAS HORMIGON SIMPLE
B61: =+B59+0.001 -> 3.019 | C61: Caño de hormigón simple de 40 cm de diámetro (sin cabezales) | D61: m | E61: 164 | G61: 0 | I61: 0
B62: =B61+0.001 -> 3.02 | C62: Cabezal de alcantarilla 1x∅400 mm | D62: un | E62: 29 | G62: 0 | I62: 0
C63: ALCANTARILLAS HORMIGON ARMADO
B64: =+B62+0.001 -> 3.021 | C64: Alcantarillas de caños de hormigón armado de 50 cm (sin cabezales) | D64: m | E64: 63 | G64: 0 | I64: 0
B65: =B64+0.001 -> 3.022 | C65: Alcantarillas de caños de hormigón armado de 60 cm (sin cabezales) | D65: m | E65: 34 | G65: 0 | I65: 0
B66: =B65+0.001 -> 3.023 | C66: Alcantarillas de caños de hormigón armado de 100 cm (sin cabezales) | D66: m | E66: 35 | G66: 0 | I66: 0
B67: =B66+0.001 -> 3.024 | C67: Cabezal de alcantarilla 2x∅50 cm | D67: un | E67: 4 | G67: 0 | I67: 0
B68: =B67+0.001 -> 3.025 | C68: Cabezal de alcantarilla 2x∅60 cm | D68: un | E68: 2 | G68: 0 | I68: 0
B69: =B68+0.001 -> 3.026 | C69: Cabezal de alcantarilla 3x∅1000 mm | D69: un | E69: 2 | G69: 0 | I69: 0
B70: 3.027 | C70: Cámara en alcantarillas compuestas | D70: un | E70: 11 | G70: 0 | I70: 0
C72: CUNETAS, DRENES Y TERRAPLENES
B73: =B70+0.001 -> 3.028 | C73: Revestimiento de taludes mediante siembra de pasto | D73: há | E73: 0.43 | G73: 0 | I73: 0
B74: =B73+0.001 -> 3.029 | C74: Revestimiento de hormión en cunetas especiales | D74: m3 | E74: 94.12916965 | G74: 0 | I74: 0
B75: =B74+0.001 -> 3.03 | C75: Badenes | D75: m | E75: 74 | G75: 0 | I75: 0
C76: SOBRECOSTOS
B77: =+B75+0.001 -> 3.031 | C77: Abatimiento de napa para colectores entre 0 y 2 m | D77: m | E77: 195 | G77: 0 | I77: 0
C79: CONFORMACIÓN DE CANAL A CIELO ABIERTO
B80: =B77+0.001 -> 3.032 | C80: Excavación no clasificada | D80: m3 | E80: 311.6155 | G80: 0 | I80: 0
B81: =B80+0.001 -> 3.033 | C81: Excavación no clasificada a depósito | D81: m3 | E81: 939.7245 | G81: 0 | I81: 0
B82: 3.034 | C82: Revestimiento de taludes y fondo en suelo pasto | D82: há | E82: 0.283674 | G82: 0 | I82: 0
B83: 3.035 | C83: Protección de hormigón armado en la descarga de alcantarilla ∅400 mm | D83: un | E83: 2 | G83: 0 | I83: 0
B84: 3.036 | C84: Protección de hormigón armado en la descarga de alcantarilla ∅600 mm | D84: un | E84: 2 | G84: 0 | I84: 0
C85: SUBTOTAL | G85: =SUM(G36:G84) -> 0 | I85: =SUM(I36:I84) -> 0
B86: Item | C86: Rubro | D86: UNIDAD | F86: UNITARIO | G86: SUBTOTAL | H86: UNIT. LLSS | I86: SUBT. LLSS
B87: 4 | C87: RED DE SANEAMIENTO
C88: SUMINISTRO E INSTALACIÓN DE TUBERIA DE PVC (INCLUYE PRUEBAS HIDRAULICAS, TAPADO Y APISONADO)
B89: =+B87+0.001 -> 4.001 | C89: Suministro e instalación de tubería d = 200 mm (entre 0 y 2 m) | D89: m | E89: 1479.276411 | G89: =+F89*E89 -> 0 | I89: =+H89*E89 -> 0
B90: =+B89+0.001 -> 4.002 | C90: Suministro e instalación de tubería d = 200 mm (entre 2 y 3 m) | D90: m | E90: 348.0895888 | G90: =+F90*E90 -> 0 | I90: =+H90*E90 -> 0
B91: =B90+0.001 -> 4.003 | C91: Suministro e instalación de tubería d = 250 mm (entre 2 y 3 m) | D91: m | E91: 58 | G91: 0 | I91: 0
B92: 4.004 | C92: Suministro e instalación de tubería d = 250 mm (entre 3 y 4 m) | D92: m | E92: 2.273502347
B93: =+B91+0.001 -> 4.004 | C93: Suministro e instalación de tubería d = 315 mm (entre 0 y 2 m) | D93: m | E93: 490 | G93: 0 | I93: 0
B94: =+B93+0.001 -> 4.005 | C94: Suministro e instalación de tubería d = 315mm (entre 2 y 3 m) | D94: m | E94: 100 | G94: 0 | I94: 0
B95: 4.006 | C95: Suministro e instalación de tubería d = 400mm (entre 0 y 2 m) | D95: m | E95: 144.3870249 | G95: 0 | I95: 0
B96: 4.007 | C96: Suministro e instalación de tubería d = 400mm (entre 2 y 3 m) | D96: m | E96: 106.2226262 | G96: 0 | I96: 0
B97: 4.008 | C97: Suministro e instalación de tubería d = 400mm (entre 3 y 4 m) | D97: m | E97: 56.24834897 | G97: 0 | I97: 0
B98: =+B97+0.001 -> 4.009 | C98: Anulación de colector provisorio d =200mm (entre 0 y 2 m) y adaptación de conexiones | D98: m | E98: 26 | G98: 0 | I98: 0
C99: REGISTROS Y PROTECCIONES
B100: =+B98+0.001 -> 4.01 | C100: Construcción de registros de primera categoría entre 0 y 2 m | D100: un | E100: 15 | G100: 0 | I100: 0
B101: =+B100+0.001 -> 4.011 | C101: Construcción de registros de primera categoría entre 2 y 3 m | D101: un | E101: 7 | G101: 0 | I101: 0
B102: 4.012 | C102: Construcción de registros de segunda categoría entre 2 y 3 m | D102: un | E102: 5 | G102: 0 | I102: 0
B103: 4.013 | C103: Construcción de registros de segunda categoría entre 3 y 4 m | D103: un | E103: 2 | G103: 0 | I103: 0
B104: 4.014 | C104: Construcción de cámara terminal | D104: un | E104: 1 | G104: 0 | I104: 0
B105: 4.015 | C105: Construcción de terminal de colector | D105: un | E105: 13 | G105: 0 | I105: 0
B106: 4.016 | C106: Cámara de aliviadero con retención tipo pico de pato 400mm | D106: gl | E106: 1 | G106: 0 | I106: 0
B107: 4.017 | C107: Cabezal de descarga aliviadero | D107: m | E107: 1 | G107: 0 | I107: 0
B108: 4.018 | C108: Cámara para caudalímetro | D108: un | E108: 1 | G108: 0 | I108: 0
C109: CONEXIONES INDIVIDUALES
B110: =+B108+0.001 -> 4.019 | C110: Construcción de conexiones domiciliarias | D110: un | E110: 169 | G110: 0 | I110: 0
B111: =+B110+0.001 -> 4.02 | C111: Construcción de cámara N° 1 | D111: un | E111: 126 | G111: 0 | I111: 0
B112: =+B111+0.001 -> 4.021 | C112: Suministro e instalación de válvulas de retención | D112: un | E112: 4 | G112: 0 | I112: 0
B113: =+B112+0.001 -> 4.022 | C113: Cegado de pozos negros | D113: un | E113: 126 | G113: 0 | I113: 0
C114: ESTRUCTURAS DE PLANTA DE BOMBEO
B115: =+B113+0.001 -> 4.023 | C115: Excavación para Pozo de Bombeo y Cámara de Válvulas en terreno blando y napa freática alta | D115: m3 | E115: 482 | G115: 0 | I115: 0
B116: =+B115+0.001 -> 4.024 | C116: Relleno y nivelación del terreno | D116: m3 | E116: 890 | G116: 0 | I116: 0
B117: =+B116+0.001 -> 4.025 | C117: Hormigón Pozo de Bombeo y fosa séptica | D117: m3 | E117: 80 | G117: 0 | I117: 0
C118: EQUIPOS, REJAS, BARANDAS, ETC
B119: =+B117+0.001 -> 4.026 | C119: Suministro de equipos de bombeo,con repuestos y guías de izado | D119: un | E119: 3 | G119: 0 | I119: 0
B120: =+B119+0.001 -> 4.027 | C120: Suministro de tanque hidroneumático 1.5 m3 | D120: un | E120: 1 | G120: 0 | I120: 0
B121: =+B120+0.001 -> 4.028 | C121: Suministro de válvulas otras | D121: gl | E121: 1 | G121: 0 | I121: 0
B122: =+B121+0.001 -> 4.029 | C122: Suministro de tableros | D122: gl | E122: 1 | G122: 0 | I122: 0
B123: =+B122+0.001 -> 4.03 | C123: Suministro de caudalímetro | D123: un | E123: 1 | G123: 0 | I123: 0
C124: ACONDICINAMIENTO DEL PREDIO DE LA PLANTA DE TRATAMIENTO Y BOMBEO
B125: =+B123+0.001 -> 4.031 | C125: Pavimento | D125: m2 | E125: 100 | G125: 0 | I125: 0
B126: =+B125+0.001 -> 4.032 | C126: Suministro y colocación de muro perimetral prefabricado | D126: gl | E126: 1 | G126: 0 | I126: 0
C127: LÍNEA DE IMPULSIÓN
B128: =+B126+0.001 -> 4.033 | C128: Suminstro e instalación de tuberías d = 250 mm PEAD | D128: m | E128: 720 | G128: 0 | I128: 0
B129: =+B128+0.001 -> 4.034 | C129: Construcción de cámara para válvulas de aire (incluye piezas especiales y válvula) | D129: gl | E129: 1 | G129: 0 | I129: 0
B130: =+B129+0.001 -> 4.035 | C130: Construcción de cámara para válvulas de desagüe (incluye piezas especiales y válvula) | D130: gl | E130: 1 | G130: 0 | I130: 0
C131: REPOSICIÓN PROVISORIA DE PAVIMENTO
B132: =+B130+0.001 -> 4.036 | C132: Reposición provisoria de pavimento | D132: m2 | E132: 12762.178 | G132: 0 | I132: 0
C133: SOBREPRECIOS POR ABATIMIENTO DE NAPA
B134: =+B132+0.001 -> 4.037 | C134: Abatimiento de napa para colectores entre 0 y 2 m | D134: m | E134: 1040.317335 | G134: 0 | I134: 0
B135: =+B134+0.001 -> 4.038 | C135: Abatimiento de napa para colectores entre 2 y 3 m | D135: m | E135: 344.2964031 | G135: 0 | I135: 0
B136: =+B135+0.001 -> 4.039 | C136: Abatimiento de napa para colectores entre 2 y 4 m | D136: m | E136: 603.025637 | G136: 0 | I136: 0
C137: SUBTOTAL | G137: =SUM(G88:G136) -> 0 | I137: =SUM(I88:I136) -> 0
B138: Item | C138: Rubro | D138: UNIDAD | F138: UNITARIO | G138: SUBTOTAL | H138: UNIT. LLSS | I138: SUBT. LLSS
B139: 5 | C139: RED DE AGUA POTABLE
C140: SUMINISTRO E INSTALACIÓN DE TUBERIAS Y PIEZAS
B141: =+B139+0.001 -> 5.001 | C141: Suministro e instalación de tubería de alta presión d = 63 mm PEAD (incluye suministro e instalación de piezas especiales) | D141: m | E141: 1430 | G141: =+F141*E141 -> 0 | I141: =+H141*E141 -> 0
B142: =+B141+0.001 -> 5.002 | C142: Suministro de llaves de paso DN 63 mm e instalación en cámaras | D142: un | E142: 8 | G142: =+F142*E142 -> 0 | I142: =+H142*E142 -> 0
B143: =+B142+0.001 -> 5.003 | C143: Suministro de hidrantes e instalación en cámaras | D143: un | G143: 0 | I143: 0
B144: 5.004 | C144: Desinfección | D144: m | E144: 1230 | G144: 0 | I144: 0
C145: CONEXIONES
B146: =+B144+0.001 -> 5.005 | C146: Conexiones domiciliarias (con medidor y nicho) | D146: un | E146: 74 | G146: 0 | I146: 0
C147: SUBTOTAL | G147: =SUM(G141:G146) -> 0 | I147: =SUM(I141:I146) -> 0
B148: Item | C148: Rubro | D148: UNIDAD | F148: UNITARIO | G148: SUBTOTAL | H148: UNIT. LLSS | I148: SUBT. LLSS
B149: 7 | C149: RED DE ALUMBRADO PUBLICO
C150: SUMINISTRO DE COLUMNAS
B151: =+B149+0.001 -> 7.001 | C151: Suministro de poste de madera tratada de 7.5 m homologado por UTE | D151: un | E151: 5 | G151: =+F151*E151 -> 0 | I151: =+H151*E151 -> 0
B152: =+B151+0.001 -> 7.002 | C152: Suministro de columna de hormigón de 7.5 m / 150 kgf homologada por UTE | D152: un | E152: 40 | G152: =+F152*E152 -> 0 | I152: =+H152*E152 -> 0
C153: SUMINISTRO DE CABLES
B154: =+B152+0.001 -> 7.003 | C154: Suministro de conductor pre-ensamblado 3x16 mm2 Al + 54,6 tipo RZ-0.6-1KV | D154: m | E154: 1900 | G154: 0 | I154: 0
B155: =+B154+0.001 -> 7.004 | C155: Suministro de conductor 2x1,5 Cu/PVC | D155: m | E155: 96 | G155: 0 | I155: 0
C156: TENDIDO DE CABLES (AÉREO)
B157: =+B155+0.001 -> 7.005 | C157: Accesorios de amarre y suspensión y derivaciones | D157: ud | E157: 48 | G157: 0 | I157: 0
C158: MONTAJE
B159: =+B157+0.001 -> 7.006 | C159: Mano de obra desmontaje y retiro de columnas | D159: ud | E159: 39 | G159: 0 | I159: 0
B160: =+B159+0.001 -> 7.007 | C160: Instalación de postes y columnas | D160: ud | E160: 44 | G160: 0 | I160: 0
B161: =+B160+0.001 -> 7.008 | C161: Tendido de líneas | D161: m | E161: 1189 | G161: 0 | I161: 0
B162: =+B161+0.001 -> 7.009 | C162: Materiales montaje, tendido | D162: ud | E162: 66 | G162: 0 | I162: 0
B163: =+B162+0.001 -> 7.01 | C163: Disponibilidad de equipos | D163: días | E163: 60 | G163: 0 | I163: 0
C164: SUMINISTRO DE LUMINARIAS (incluye brazos)
B165: =+B163+0.001 -> 7.011 | C165: Suministro de protecciones para luminarias - caja estanca + interruptor | D165: un | E165: 84 | G165: 0 | I165: 0
B166: =+B165+0.001 -> 7.012 | C166: Suministro de Luminarias LED viales de 50 W | D166: un | E166: 84 | G166: 0 | I166: 0
B167: =+B166+0.001 -> 7.013 | C167: Suministro Reflector LED 240 W | D167: un | E167: 20 | G167: 0 | I167: 0
B168: =+B167+0.001 -> 7.014 | C168: Suministro Farola LED 20 W | D168: un | E168: 16 | G168: 0 | I168: 0
C169: TABLERO DE ILUMINACIÓN
B170: =+B168+0.001 -> 7.015 | C170: Tablero de iluminación | D170: un | E170: 1 | G170: 0 | I170: 0
C172: SUBTOTAL | G172: =SUM(G150:G171) -> 0 | I172: =SUM(I150:I171) -> 0
B173: 8 | C173: ELÉCTRICA POZO DE BOMBEO
C174: MEDIDORES DE UTE
B175: =+B173+0.001 -> 8.001 | C175: Trámite de nuevo servicio UTE y suministro y montaje de caja para medidores | D175: gl | E175: 1 | G175: =+F175*E175 -> 0 | I175: =+H175*E175 -> 0
B176: =+B175+0.001 -> 8.002 | C176: SUMINISTRO Y MONTAJE DE TABLERO DE POTENCIA
B177: =+B176+0.001 -> 8.003 | C177: Centro de Distribución de Potencia CDP | D177: u | E177: 1 | G177: =+F177*E177 -> 0 | I177: =+H177*E177 -> 0
B178: 8.004 | C178: Tablero de CCTV TCCTV | D178: u | E178: 1 | G178: 0 | I178: 0
B179: 8.005 | C179: Tablero de control de acceso TCA | D179: u | E179: 1 | G179: 0 | I179: 0
B180: 8.006 | C180: Tablero de alarma de intrusos TAI | D180: u | E180: 1 | G180: 0 | I180: 0
B181: 8.007 | C181: Suministro, tendido y conexionado de cables de potencia
B182: 8.008 | C182: Cable de 3x35+25T alimentación UTE | D182: m | E182: 10 | G182: 0 | I182: 0
B183: 8.009 | C183: Cable de 3x35+25T BLINDADO - alimentación Bombas | D183: m | E183: 50 | G183: 0 | I183: 0
B184: 8.01 | C184: Cable de 2x2,5 | D184: m | E184: 20 | G184: 0 | I184: 0
B185: 8.011 | C185: Cable de 2x1,5 | D185: m | E185: 100 | G185: 0 | I185: 0
B186: 8.012 | C186: Suministro y montaje de canalizaciones aparentes de potencia y control (escalerillas, ductos, caños, etc.) | E186: 0 | G186: 0 | I186: 0
B187: 8.013 | C187: Caño de acero galvanizado de 1 1/2”. Incluye soportes, codos, etc. | D187: m | E187: 20 | G187: 0 | I187: 0
B188: 8.014 | C188: Suministro y montaje de canalizaciones subterráneas de potencia y control
B189: 8.015 | C189: Caño de PVC 110 mm | D189: m | E189: 30 | G189: 0 | I189: 0
B190: 8.016 | C190: Cámaras de 0,60x0,60 m | D190: u | E190: 2 | G190: 0 | I190: 0
B191: 8.017 | C191: Cámaras de 0,40x0,40 m | D191: u | E191: 3 | G191: 0 | I191: 0
B192: 8.018 | C192: Cámaras de 0,20x0,20 m | D192: u | E192: 1 | G192: 0 | I192: 0
B193: 8.019 | C193: Suministro, tendido y conexionado de cables de control, y botoneras locales | E193: 0 | G193: 0 | I193: 0
B194: 8.02 | C194: Cables de control de 5x1,5 mm2 | D194: m | E194: 30 | G194: 0 | I194: 0
B195: 8.021 | C195: PAT y protección contradescargas atmosféricas | E195: 0 | G195: 0 | I195: 0
B196: 8.022 | C196: Columna, toma de tierra, captor, barras de tierra , soldadura, conductor de bajada | D196: gl | E196: 1 | G196: 0 | I196: 0
B197: 8.023 | C197: Instalación de iluminación y servicios
B198: 8.024 | C198: Luminaria vial LED 50 W IP65 + brazo | D198: u | E198: 1 | G198: 0 | I198: 0
B199: 8.025 | C199: Tomacorrientes tipo schuko | D199: u | E199: 1 | G199: 0 | I199: 0
B200: 8.026 | C200: Tomacorrientes tipo 3 en línea | D200: u | E200: 1 | G200: 0 | I200: 0
B201: 8.027 | C201: Tomacorrientes trifásico tipo industrial 16 A | D201: u | E201: 1 | G201: 0 | I201: 0
B202: 8.028 | C202: Generales de Eléctrica
B203: 8.029 | C203: Montaje | D203: gl | E203: 1 | G203: 0 | I203: 0
B204: 8.03 | C204: Pruebas y puesta en servicio | D204: gl | E204: 1 | G204: 0 | I204: 0
B205: 8.031 | C205: Proyecto constructivo y planos según obra | D205: gl | E205: 1 | G205: 0 | I205: 0
... 245 more rows
